fUST/lending_fUST_20260120
["ID","MTS","AMOUNT","RATE_DAILY","PERIOD"]
[402741658,1768875040556,-500.0,0.00013273,2]
[402741660,1768875040565,-500.65159175,0.00013273,2]
[402741662,1768875040574,-500.0,0.00013273,2]
[402741664,1768875040584,-514.22909233,0.00013273,2]
[402741666,1768875040593,-503.58398624,0.00013273,2]
[402741668,1768875040602,-500.44441304,0.00013273,2]
[402741670,1768875040611,-217.40750351,0.00013273,2]
[402741672,1768875040621,-500.0,0.00013273,2]
[402741674,1768875040630,-500.0,0.00013273,2]
[402741676,1768875040640,-500.0,0.00013273,2]
[402741678,1768875040651,-500.0,0.00013273,2]
[402741679,1768875040661,-500.0,0.00013273,2]
[402741681,1768875040672,-500.0,0.00013273,2]
[402741683,1768875040683,-501.12366089,0.00013273,2]
[402741685,1768875040693,-156.67219213,0.00013273,2]
[402741687,1768875040702,-500.0,0.00013273,2]
[402741690,1768875040712,-500.0,0.00013273,2]
[402741691,1768875040721,-500.7911164,0.00013273,2]
[402741693,1768875040732,-500.83350839,0.00013273,2]
[402741695,1768875040741,-500.87867221,0.00013273,2]
[402741698,1768875040751,-502.25914102,0.00013273,2]
[402741699,1768875040761,-501.21191706,0.00013273,2]
[402741701,1768875040771,-500.65936208,0.00013273,2]
[402741703,1768875040780,-500.43959266,0.00013273,2]
[402741706,1768875040790,-305.34302164,0.00013273,2]
[402741708,1768875040799,-500.0,0.00013273,2]
[402741710,1768875040808,-171.87560824,0.00013273,2]
[402741711,1768875040818,-500.90973917,0.00013273,2]
[402741713,1768875040826,-500.0,0.00013273,2]
[402741715,1768875040836,-2312.83697232,0.00013289,2]
[402741717,1768875040844,-174.61919141,0.00013318,2]
[402741719,1768875040854,-478.75725327,0.00013318,2]
[402741721,1768875040863,-500.0,0.00013347,2]
[402741723,1768875040871,-2877.51299341,0.00013446,2]
[402741725,1768875040880,-500.0,0.0001357,2]
[402741727,1768875040890,-1083.95606948,0.00013602,2]
[402741729,1768875040899,-500.0,0.00013621,2]
[402741731,1768875040907,-5285.0,0.00013626,2]
[402741733,1768875040917,-5285.0,0.0001363,2]
[402741735,1768875040926,-800.0,0.00013651,2]
[402741737,1768875040934,-800.0,0.00013652,2]
[402741739,1768875040946,-300.0,0.00013673,2]
[402741741,1768875040956,-500.0,0.00013698,2]
[402741742,1768875040966,-549.7845155,0.00013698,2]
[402741744,1768875040975,-500.0,0.00013698,2]
[402741746,1768875040985,-500.0,0.00013698,2]
[402741748,1768875040995,-500.0,0.00013698,2]
[402741750,1768875041005,-500.0,0.00013698,2]
[402741752,1768875041014,-500.0,0.00013698,2]
[402741754,1768875041024,-500.0,0.00013698,2]
[402741756,1768875041033,-500.0,0.00013698,2]
[402741758,1768875041043,-500.0,0.00013698,2]
[402741760,1768875041051,-517.3835177,0.00013698,2]
[402741762,1768875041060,-500.0,0.00013698,2]
[402741764,1768875041070,-500.0,0.00013698,2]
[402741766,1768875041078,-500.0,0.00013698,2]
[402741768,1768875041087,-500.0,0.00013698,2]
[402741770,1768875041097,-500.0,0.00013698,2]
[402741772,1768875041106,-500.0,0.00013698,2]
[402741774,1768875041116,-500.85241185,0.00013698,2]
[402741776,1768875041125,-2920.15,0.00013698,2]
[402741778,1768875041134,-2920.15,0.00013698,2]
[402741780,1768875041145,-2920.15,0.00013698,2]
[402741781,1768875041154,-2920.15,0.00013698,2]
[402741782,1768875041163,-500.0,0.00013698,2]
[402741783,1768875041171,-500.0,0.00013698,2]
[402741784,1768875041180,-500.0,0.00013698,2]
[402741785,1768875041189,-500.0,0.00013698,2]
[402741786,1768875041198,-1229.04,0.00013698,2]
[402741787,1768875041208,-1229.04,0.00013698,2]
[402741788,1768875041217,-1229.04,0.00013698,2]
[402741789,1768875041226,-1229.04,0.00013698,2]
[402741790,1768875041235,-1719.21,0.00013698,2]
[402741791,1768875041244,-1719.21,0.00013698,2]
[402741792,1768875041253,-1719.21,0.00013698,2]
[402741793,1768875041262,-1719.21,0.00013698,2]
[402741794,1768875041271,-507.19470404,0.00013698,2]
[402741795,1768875041279,-1297.57,0.00013698,2]
[402741796,1768875041288,-1297.57,0.00013698,2]
[402741797,1768875041297,-180.0342065,0.00013699,2]
[402741798,1768875041307,-2699.485009,0.00013699,2]
[402741799,1768875041316,-501.35700508,0.00013699,2]
[402741800,1768875041325,-500.0,0.00013699,2]
[402741801,1768875041334,-500.0,0.00013699,2]
[402741802,1768875041343,-500.0,0.00013699,2]
[402741803,1768875041352,-194.34876524,0.00013699,2]
[402741804,1768875041361,-172.98841011,0.00013699,2]
[402741805,1768875041370,-500.51565046,0.00013699,2]
[402741806,1768875041379,-500.0,0.00013699,2]
[402741807,1768875041388,-501.72583828,0.00013699,2]
[402741808,1768875041397,-500.0,0.00013699,2]
[402741809,1768875041407,-500.0,0.00013699,2]
[402741810,1768875041416,-501.29149597,0.00013699,2]
[402741811,1768875041425,-163.01901735,0.00013699,2]
[402741812,1768875041434,-500.0,0.00013699,2]
[402741813,1768875041443,-500.0,0.00013699,2]
[402741814,1768875041453,-500.0,0.00013699,2]
[402741815,1768875041462,-158.04981062,0.00013699,2]
[402741816,1768875041471,-400.06859375,0.00013699,2]
[402741817,1768875041480,-500.0,0.00013699,2]
[402741818,1768875041489,-608.3787648,0.00013699,2]
[402741819,1768875041498,-158.04977482,0.00013699,2]
[402741820,1768875041507,-500.0,0.00013699,2]
[402741821,1768875041515,-500.0,0.00013699,2]
[402741822,1768875041524,-500.3147107,0.00013699,2]
[402741823,1768875041533,-500.0,0.00013699,2]
[402741824,1768875041542,-500.0,0.00013699,2]
[402741825,1768875041551,-501.26293977,0.00013699,2]
[402741826,1768875041560,-500.0,0.00013699,2]
[402741827,1768875041569,-500.0,0.00013699,2]
[402741828,1768875041577,-501.02196996,0.00013699,2]
[402741829,1768875041586,-500.0,0.00013699,2]
[402741830,1768875041595,-501.1992665,0.00013699,2]
[402741831,1768875041604,-500.0,0.00013699,2]
[402741832,1768875041613,-506.0812071,0.00013699,2]
[402741833,1768875041622,-2000.0,0.00013699,2]
[402741834,1768875041631,-2000.0,0.00013699,2]
[402741835,1768875041640,-2000.0,0.00013699,2]
[402741836,1768875041648,-2000.0,0.00013699,2]
[402741837,1768875041657,-2000.0,0.00013699,2]
[402741838,1768875041666,-2000.0,0.00013699,2]
[402741839,1768875041675,-2000.0,0.00013699,2]
[402741840,1768875041684,-475.0,0.00013699,2]
[402741841,1768875041693,-475.0,0.00013699,2]
[402741842,1768875041702,-475.0,0.00013699,2]
[402741843,1768875041711,-475.0,0.00013699,2]
[402741844,1768875041720,-475.0,0.00013699,2]
[402741845,1768875041729,-475.0,0.00013699,2]
[402741846,1768875041738,-475.0,0.00013699,2]
[402741847,1768875041746,-475.0,0.00013699,2]
[402741848,1768875041755,-475.0,0.00013699,2]
[402741849,1768875041764,-475.0,0.00013699,2]
[402741850,1768875041776,-475.0,0.00013699,2]
[402741851,1768875041785,-475.0,0.00013699,2]
[402741852,1768875041793,-475.0,0.00013699,2]
[402741853,1768875041803,-475.0,0.00013699,2]
[402741854,1768875041812,-475.0,0.00013699,2]
[402741855,1768875041821,-2142.54947272,0.00013699,2]
[402741856,1768875041830,-3102.51691187,0.00013699,2]
[402741857,1768875041986,-155.90225123,0.00013699,2]
[402741858,1768875041996,-500.0,0.00013699,2]
[402741859,1768875042005,-500.0,0.00013699,2]
[402741860,1768875042016,-500.0,0.00013699,2]
[402741861,1768875042025,-470.97944282,0.00013699,2]
[402741862,1768875042033,-800.0,0.00013702,2]
[402741863,1768875042042,-5285.0,0.00013707,2]
[402741864,1768875042051,-1127.0,0.00013712,2]
[402741865,1768875042060,-500.0,0.00013719,2]
[402741866,1768875042068,-500.0,0.00013719,2]
[402741867,1768875042077,-500.0,0.00013719,2]
[402741868,1768875042086,-2920.15,0.00013719,2]
[402741869,1768875042096,-500.0,0.00013719,2]
[402741870,1768875042104,-1229.04,0.00013719,2]
[402741871,1768875042113,-1719.21,0.00013719,2]
[402741872,1768875042122,-16494.0863338,0.0001372,2]
[402741873,1768875042131,-3270.5322774,0.0001372,2]
[402741874,1768875042140,-167.7394936,0.0001372,2]
[402741875,1768875042148,-4501.5203292,0.0001372,2]
[402741876,1768875042157,-387442.09963443,0.0001372,2]
[402741877,1768875042306,-7101.09359314,0.0001372,2]
[402741878,1768875042317,-155330.60757078,0.0001372,2]
[402741879,1768875042328,-1040.1369001,0.0001372,2]
[402741880,1768875042339,-1619.38572393,0.0001372,2]
[402741881,1768875042350,-7049.96099586,0.0001372,2]
[402741882,1768875042361,-1577.33909433,0.0001372,2]
[402741883,1768875042380,-1297.57,0.00013698,2]
[402741884,1768875042389,-1751.4059996,0.0001372,2]
[402741885,1768875042402,-3033.01852061,0.0001372,2]
[402741886,1768875042414,-1449.04806785,0.0001372,2]
[402741887,1768875042710,-1297.57,0.00013698,2]
[402741888,1768875042719,-505.22185036,0.00013719,2]
[402741889,1768875042730,-339.07356829,0.00013719,2]
[402741890,1768875042741,-453.27458135,0.00013719,2]
[402741891,1768875042750,-94322.76484535,0.0001372,2]
[402741934,1768875043612,-160.0,0.00012818,2]
[402741936,1768875043621,-3750.00000152,0.0001372,2]
[402744013,1768875146738,166.38,8.661e-05,2]
[402744014,1768875147155,249.57,9.055e-05,2]
[402744015,1768875147580,332.75,9.448e-05,2]
[402744016,1768875223711,220.98,9.396e-05,2]
[402744017,1768875301349,166.14,8.362e-05,2]
[402744018,1768875301769,332.27,8.76e-05,2]
[402744019,1768875302205,498.41,9.159e-05,2]
[402744020,1768875302619,664.54,9.557e-05,2]
[402744024,1768875349121,500.0,0.00027397,120]
[402744025,1768875349377,500.0,0.00027397,120]
[402744026,1768875349639,500.0,0.00027397,120]
[402744027,1768875349885,500.0,0.00027397,120]
[402744028,1768875350107,500.0,0.00027397,120]
[402744029,1768875350339,227.13490997,0.00027397,120]
[402744030,1768875380629,162.35,6.85e-05,2]
[402744031,1768875381051,324.69,7.176e-05,2]
[402744032,1768875381451,487.04,7.502e-05,2]
[402744033,1768875381891,649.39,7.829e-05,2]
[402744034,1768875382807,811.73,8.155e-05,2]
[402744035,1768875383787,974.08,8.481e-05,2]
[402744036,1768875384232,1136.43,8.807e-05,2]
[402744037,1768875384654,1298.77,9.133e-05,2]
[402744038,1768875385079,1461.12,9.46e-05,2]
[402744039,1768875458814,156.14,7.491e-05,2]
[402744040,1768875459244,312.29,7.848e-05,2]
[402744041,1768875460158,468.43,8.205e-05,2]
[402744042,1768875460581,96.19,8.561e-05,2]
[402744043,1768875460603,528.38,8.561e-05,2]
[402744044,1768875461000,780.71,8.918e-05,2]
[402744045,1768875461454,936.86,9.275e-05,2]
[402744046,1768875461887,1093.0,9.631e-05,2]
[402744052,1768875539314,297.18,7.097e-05,2]
[402744053,1768875539745,445.77,7.42e-05,2]
[402744054,1768875540143,594.36,7.743e-05,2]
[402744055,1768875540560,742.94,8.065e-05,2]
[402744058,1768875541480,891.53,8.388e-05,2]
[402744059,1768875541922,1040.12,8.711e-05,2]
[402744060,1768875542340,1188.71,9.033e-05,2]
[402744061,1768875542777,1337.3,9.356e-05,2]
[402744062,1768875546049,-578.06872924,9.678e-05,2]
[402744063,1768875548187,-295.29514961,9.678e-05,2]
[402744064,1768875552153,-606.46049461,9.678e-05,2]
[402744066,1768875575678,503.03192788,0.00027397,120]
[402744068,1768875605963,-6.06562654,9.678e-05,2]
[402744069,1768875605990,-389.8955927,9.678e-05,2]
[402744070,1768875615190,150.6,6.579e-05,2]
[402744071,1768875615577,301.21,6.892e-05,2]
[402744072,1768875616004,451.81,7.205e-05,2]
[402744073,1768875616467,602.41,7.518e-05,2]
[402744074,1768875617365,753.02,7.832e-05,2]
[402744075,1768875617808,903.62,8.145e-05,2]
[402744076,1768875618223,1054.23,8.458e-05,2]
[402744077,1768875618636,1204.83,8.771e-05,2]
[402744078,1768875619057,1355.43,9.085e-05,2]
[402744079,1768875619479,1506.04,9.398e-05,2]
[402744080,1768875625693,927.91651293,0.00011,120]
[402744081,1768875651263,500.0,0.00027397,120]
[402744082,1768875651492,171.85954715,0.00027397,120]
[402744083,1768875666704,609.65,0.00027397,120]
[402744084,1768875689728,502.47359962,0.00027397,120]
[402744086,1768875692340,255.05,6.902e-05,2]
[402744087,1768875692783,382.57,7.216e-05,2]
[402744088,1768875693202,510.1,7.53e-05,2]
[402744089,1768875693625,569.09,7.843e-05,2]
[402744090,1768875693649,68.53,7.843e-05,2]
[402744091,1768875694044,765.14,8.157e-05,2]
[402744092,1768875694466,892.67,8.471e-05,2]
[402744093,1768875694994,1020.19,8.785e-05,2]
[402744094,1768875695290,1147.72,9.098e-05,2]
[402744095,1768875695713,1275.24,9.412e-05,2]
[402744096,1768875720686,329015.20845,0.0002739,120]
[402744097,1768875767615,155.68,6.582e-05,2]
[402744098,1768875768034,311.36,6.895e-05,2]
[402744099,1768875768452,467.04,7.209e-05,2]
[402744100,1768875768872,622.73,7.522e-05,2]
[402744101,1768875769294,778.41,7.836e-05,2]
[402744102,1768875769728,934.09,8.149e-05,2]
[402744103,1768875770142,1089.77,8.462e-05,2]
[402744104,1768875770560,471.44,8.776e-05,2]
[402744105,1768875770582,774.01,8.776e-05,2]
[402744106,1768875770990,1401.13,9.089e-05,2]
[402744107,1768875771444,1556.81,9.403e-05,2]
[402744108,1768875771500,313.38152657,0.00027397,120]
[402744109,1768875834233,500.0,0.00027397,120]
[402744110,1768875843974,228.18,6.918e-05,2]
[402744111,1768875844591,342.27,7.232e-05,2]
[402744112,1768875845167,456.36,7.547e-05,2]
[402744113,1768875845616,570.45,7.861e-05,2]
[402744114,1768875846046,684.54,8.176e-05,2]
[402744115,1768875846511,798.63,8.49e-05,2]
[402744116,1768875846902,912.72,8.804e-05,2]
[402744117,1768875847296,1026.8,9.119e-05,2]
[402744118,1768875847704,1140.89,9.433e-05,2]
[402744119,1768875890286,1229.04,0.00027397,120]
[402744120,1768875890547,1229.04,0.00027397,120]
[402744121,1768875890815,1229.04,0.00027397,120]
[402744122,1768875891016,505.04858677,0.00027397,120]
[402744123,1768875891065,1229.04,0.00027397,120]
[402744124,1768875891303,1229.04,0.00027397,120]
[402744125,1768875891557,1229.04,0.00027397,120]
[402744126,1768875891799,1229.04,0.00027397,120]
[402744127,1768875892050,1229.04,0.00027397,120]
[402744128,1768875892323,1229.04,0.00027397,120]
[402744129,1768875892559,1229.04,0.00027397,120]
[402744130,1768875892788,1229.04,0.00027397,120]
[402744132,1768875893037,1229.04,0.00027397,120]
[402744133,1768875893289,1229.04,0.00027397,120]
[402744134,1768875893524,1229.04,0.00027397,120]
[402744135,1768875893765,1229.04,0.00027397,120]
[402744136,1768875894173,1229.04,0.00027397,120]
[402744137,1768875894279,1229.04,0.00027397,120]
[402744138,1768875894502,1229.04,0.00027397,120]
[402744139,1768875894753,1229.04,0.00027397,120]
[402744140,1768875894983,1229.04,0.00027397,120]
[402744141,1768875895224,1229.04,0.00027397,120]
[402744142,1768875895461,1229.04,0.00027397,120]
[402744143,1768875895725,1229.04,0.00027397,120]
[402744144,1768875895983,1229.14236579,0.00027397,120]
[402744145,1768875920677,178.39,7.862e-05,2]
[402744146,1768875921104,214.07,8.177e-05,2]
[402744147,1768875921507,249.75,8.491e-05,2]
[402744149,1768875929330,285.43,8.806e-05,2]
[402744150,1768875929812,321.11,9.12e-05,2]
[402744152,1768875930236,356.79,9.435e-05,2]
[402744153,1768875977943,551.94745432,0.00027397,120]
[402744155,1768876034749,503.7,0.00027397,120]
[402744157,1768876043285,500.0,0.00027397,120]
[402744158,1768876043530,583.94093013,0.00027397,120]
[402744159,1768876056028,259.11183883,0.00027397,120]
[402744239,1768876238661,-384.70465704,9.88e-05,2]
[402744241,1768876238671,-500.0,0.0001,2]
[402744243,1768876238681,-162.23044371,0.00010372,2]
[402744245,1768876238691,-2000.0,0.000108,2]
[402744247,1768876238700,-1000000.0,0.0001093,2]
[402744249,1768876238710,-300.0,0.00010998,2]
[402744251,1768876238719,-300.0,0.00010998,2]
[402744253,1768876238729,-300.0,0.00010998,2]
[402744255,1768876238739,-1200.0,0.00010999,2]
[402744257,1768876238749,-500.0,0.00011,2]
[402744259,1768876238758,-151.0,0.00011,2]
[402744261,1768876238769,-151.0,0.00011,2]
[402744263,1768876238778,-151.0,0.00011,2]
[402744265,1768876238788,-151.0,0.00011,2]
[402744267,1768876238797,-151.0,0.00011,2]
[402744269,1768876238807,-151.0,0.00011,2]
[402744271,1768876238816,-151.0,0.00011,2]
[402744273,1768876238825,-151.0,0.00011,2]
[402744274,1768876238834,-151.0,0.00011,2]
[402744276,1768876238844,-151.0,0.00011,2]
[402744278,1768876238854,-151.0,0.00011,2]
[402744280,1768876238864,-151.0,0.00011,2]
[402744282,1768876238874,-151.0,0.00011,2]
[402744284,1768876238884,-151.0,0.00011,2]
[402744286,1768876238894,-151.0,0.00011,2]
[402744288,1768876238904,-151.0,0.00011,2]
[402744291,1768876238914,-151.0,0.00011,2]
[402744292,1768876238923,-151.0,0.00011,2]
[402744295,1768876238933,-151.0,0.00011,2]
[402744297,1768876238944,-151.0,0.00011,2]
[402744299,1768876238962,-282.57501083,0.00011,2]
[402744302,1768876238975,-151.0,0.00011,2]
[402744304,1768876238985,-151.0,0.00011,2]
[402744306,1768876238995,-151.0,0.00011,2]
[402744308,1768876239005,-151.0,0.00011,2]
[402744310,1768876239015,-151.0,0.00011,2]
[402744311,1768876239026,-150.88226918,0.00011,2]
[402744314,1768876239036,-189.50688871,0.00011029,2]
[402744316,1768876239047,-231.02682883,0.00011029,2]
[402744318,1768876239058,-310.57114226,0.00011029,2]
[402744320,1768876239068,-332.32188715,0.00011029,2]
[402744322,1768876239078,-1000.0,0.000112,3]
[402744324,1768876239088,-563.51624991,0.00011564,2]
[402744326,1768876239098,-213.17,0.00011752,2]
[402744328,1768876239109,-453.95149531,0.0001188,2]
[402744330,1768876239119,-506.26786132,0.00012,2]
[402744332,1768876239129,-283.0,0.00012086,2]
[402744334,1768876239139,-420.0,0.00012086,2]
[402744336,1768876239150,-420.0,0.00012086,2]
[402744338,1768876239160,-500.0,0.00012099,2]
[402744340,1768876239170,-1680.0,0.00012099,2]
[402744342,1768876239180,-319.0,0.00012324,2]
[402744343,1768876239190,-5506.62,0.00012329,2]
[402744345,1768876239200,-4588.85,0.00012329,2]
[402744347,1768876239211,-3824.04,0.00012329,2]
[402744349,1768876239220,-3186.7,0.00012329,2]
[402744351,1768876239230,-2655.58,0.00012329,2]
[402744353,1768876239241,-2212.99,0.00012329,2]
[402744355,1768876239252,-1844.16,0.00012329,2]
[402744357,1768876239264,-1536.8,0.00012329,2]
[402744359,1768876239276,-1280.66,0.00012329,2]
[402744361,1768876239287,-1067.22,0.00012329,2]
[402744363,1768876239297,-889.35,0.00012329,2]
[402744365,1768876239307,-741.12,0.00012329,2]
[402744367,1768876239316,-617.6,0.00012329,2]
[402744368,1768876239327,-514.67,0.00012329,2]
[402744369,1768876239337,-428.89,0.00012329,2]
[402744370,1768876239347,-357.41,0.00012329,2]
[402744371,1768876239357,-297.84,0.00012329,2]
[402744372,1768876239366,-248.2,0.00012329,2]
[402744373,1768876239376,-206.84,0.00012329,2]
[402744374,1768876239385,-172.36,0.00012329,2]
[402744375,1768876239395,-861.84,0.00012329,2]
[402744376,1768876239405,-500.0,0.00012329,2]
[402744377,1768876239414,-500.0,0.00012329,2]
[402744378,1768876239423,-500.0,0.00012329,2]
[402744379,1768876239432,-500.0,0.00012329,2]
[402744380,1768876239441,-500.0,0.00012329,2]
[402744381,1768876239451,-500.0,0.00012329,2]
[402744382,1768876239460,-500.0,0.00012329,2]
[402744383,1768876239470,-500.0,0.00012329,2]
[402744384,1768876239479,-500.0,0.00012329,2]
[402744385,1768876239490,-500.0,0.00012329,2]
[402744386,1768876239501,-500.0,0.00012329,2]
[402744387,1768876239511,-500.0,0.00012329,2]
[402744388,1768876239524,-500.0,0.00012329,2]
[402744389,1768876239533,-500.0,0.00012329,2]
[402744390,1768876239543,-500.0,0.00012329,2]
[402744391,1768876239552,-500.0,0.00012329,2]
[402744392,1768876239562,-500.0,0.00012329,2]
[402744393,1768876239572,-500.0,0.00012329,2]
[402744394,1768876239581,-500.0,0.00012329,2]
[402744395,1768876239591,-500.0,0.00012329,2]
[402744396,1768876239600,-500.0,0.00012329,2]
[402744397,1768876239610,-500.0,0.00012329,2]
[402744398,1768876239619,-500.0,0.00012329,2]
[402744399,1768876239628,-500.0,0.00012329,2]
[402744400,1768876239638,-500.0,0.00012329,2]
[402744401,1768876239648,-500.0,0.00012329,2]
[402744402,1768876239658,-500.0,0.00012329,2]
[402744403,1768876239667,-500.0,0.00012329,2]
[402744404,1768876239677,-500.0,0.00012329,2]
[402744405,1768876239686,-500.0,0.00012329,2]
[402744406,1768876239695,-500.0,0.00012329,2]
[402744407,1768876239705,-500.0,0.00012329,2]
[402744408,1768876239715,-500.0,0.00012329,2]
[402744409,1768876239724,-500.0,0.00012329,2]
[402744410,1768876239734,-500.0,0.00012329,2]
[402744411,1768876239743,-500.0,0.00012329,2]
[402744412,1768876239753,-500.0,0.00012329,2]
[402744413,1768876239763,-500.0,0.00012329,2]
[402744414,1768876239773,-500.0,0.00012329,2]
[402744415,1768876239787,-500.0,0.00012329,2]
[402744416,1768876239796,-500.0,0.00012329,2]
[402744417,1768876239806,-500.0,0.00012329,2]
[402744418,1768876239815,-500.0,0.00012329,2]
[402744419,1768876239825,-500.0,0.00012329,2]
[402744420,1768876239834,-500.0,0.00012329,2]
[402744421,1768876239844,-500.0,0.00012329,2]
[402744422,1768876239853,-500.0,0.00012329,2]
[402744423,1768876239863,-500.0,0.00012329,2]
[402744424,1768876239872,-500.0,0.00012329,2]
[402744425,1768876239881,-500.0,0.00012329,2]
[402744426,1768876239891,-500.0,0.00012329,2]
[402744427,1768876239901,-500.0,0.00012329,2]
[402744428,1768876239911,-500.0,0.00012329,2]
[402744429,1768876239921,-500.0,0.00012329,2]
[402744430,1768876239931,-500.0,0.00012329,2]
[402744431,1768876239941,-500.0,0.00012329,2]
[402744432,1768876239952,-500.0,0.00012329,2]
[402744433,1768876239962,-500.0,0.00012329,2]
[402744434,1768876239972,-500.0,0.00012329,2]
[402744435,1768876239982,-500.0,0.00012329,2]
[402744436,1768876239992,-500.0,0.00012329,2]
[402744437,1768876240003,-425.54083359,0.00012329,2]
[402744438,1768876240013,-499.99999999,0.00012329,2]
[402744439,1768876240024,-173.86513209,0.00012333,2]
[402744440,1768876240034,-2154.459,0.00012364,2]
[402744441,1768876240044,-773.002,0.00012364,2]
[402744442,1768876240054,-417.313,0.00012364,2]
[402744443,1768876240064,-795.927,0.00012364,2]
[402744444,1768876240074,-199.667,0.00012364,2]
[402744446,1768876240083,-500.0,0.00012373,2]
[402744448,1768876240092,-5686.33955505,0.00012379,2]
[402744449,1768876240102,-500.0,0.00012647,2]
[402744450,1768876240112,-1041.66666667,0.00012716,2]
[402744451,1768876240122,-163.42153372,0.00012777,2]
[402744452,1768876240132,-162.380719,0.00012777,2]
[402744453,1768876240141,-162.380719,0.00012777,2]
[402744454,1768876240151,-168.3888056,0.00012777,2]
[402744455,1768876240161,-174.61919141,0.00012777,2]
[402744456,1768876240170,-1957.856,0.00012777,2]
[402744457,1768876240180,-181.08010149,0.00012777,2]
[402744458,1768876240190,-187.78006525,0.00012777,2]
[402744459,1768876240199,-194.72792766,0.00012777,2]
[402744460,1768876240208,-201.93286099,0.00012777,2]
[402744461,1768876240218,-209.40437684,0.00012777,2]
[402744462,1768876240228,-217.15233878,0.00012777,2]
[402744463,1768876240237,-225.18697532,0.00012777,2]
[402744464,1768876240247,-233.51889341,0.00012777,2]
[402744465,1768876240260,-242.15909246,0.00012777,2]
[402744466,1768876240270,-251.11897888,0.00012777,2]
[402744467,1768876240279,-260.4103811,0.00012777,2]
[402744468,1768876240289,-270.0455652,0.00012777,2]
[402744469,1768876240299,-280.03725112,0.00012777,2]
[402744470,1768876240308,-294.37798719,0.00012777,2]
[402744472,1768876240317,-290.39862941,0.00012777,2]
[402744473,1768876240554,-445.202766,0.00012777,2]
[402744474,1768876240564,-301.1433787,0.00012777,2]
[402744475,1768876240573,-2150.738,0.00012777,2]
[402744476,1768876240582,-2030.296672,0.00012832,2]
[402744477,1768876240591,-2105.41764886,0.00012887,2]
[402744478,1768876240601,-729.0,0.00012893,2]
[402744479,1768876240610,-3876.0,0.00012893,2]
[402744480,1768876240619,-3876.0,0.00012893,2]
[402744481,1768876240628,-14564.37259996,0.000129,2]
[402744482,1768876240637,-729.0,0.00012908,2]
[402744483,1768876240646,-500.0,0.00012921,2]
[402744484,1768876240656,-2183.31810187,0.00012942,2]
[402744485,1768876240665,-2264.10087164,0.00012997,2]
[402744486,1768876240675,-1000.0,0.00013,2]
[402744487,1768876240684,-500.0,0.00013046,2]
[402744488,1768876240694,-2347.87260389,0.00013052,2]
[402744489,1768876240703,-2434.74389024,0.00013107,2]
[402744490,1768876240712,-2524.82941417,0.00013162,2]
[402744491,1768876240721,-500.0,0.00013195,2]
[402744492,1768876240730,-2618.2481025,0.00013217,2]
[402744493,1768876240739,-2715.12328229,0.00013272,2]
[402744494,1768876240748,-501.16877104,0.00013273,2]
[402744495,1768876240758,-283.82405284,0.00013273,2]
[402744497,1768876240767,-264.62653308,0.00013273,2]
[402744499,1768876240777,-501.04408585,0.00013273,2]
[402744500,1768876240787,-501.14775372,0.00013273,2]
[402744501,1768876240796,-500.0,0.00013273,2]
[402744502,1768876240805,-500.0,0.00013273,2]